fUSD/lending_fUSD_20250814
["ID","MTS","AMOUNT","RATE_DAILY","PERIOD"]
[379177711,1755178262756,-863.62,0.00027534,2]
[379177712,1755178262766,-546.51,0.00027534,2]
[379177713,1755178262776,-400.0,0.00027534,2]
[379177714,1755178262787,-400.0,0.00027534,2]
[379177715,1755178262797,-400.0,0.00027534,2]
[379177716,1755178262807,-4620.46,0.00027534,2]
[379177717,1755178262818,-17448.02,0.00027534,2]
[379177718,1755178262827,-8698.69,0.00027534,2]
[379177719,1755178262838,-400.0,0.00027534,2]
[379177720,1755178262848,-5603.31,0.00027534,2]
[379177721,1755178262858,-400.0,0.00027534,2]
[379177722,1755178262869,-3056.88,0.00027534,2]
[379177723,1755178262879,-7249.61,0.00027534,2]
[379177724,1755178262890,-4155.84,0.00027534,2]
[379177725,1755178262901,-10080.61,0.00027534,2]
[379177726,1755178262912,-1164.62,0.00027534,2]
[379177727,1755178262923,-3889.84,0.00027534,2]
[379177728,1755178262934,-6735.37,0.00027534,2]
[379177729,1755178262944,-1339.15309942,0.00027534,2]
[379177730,1755178262955,-400.0,0.00027534,2]
[379177731,1755178262966,-2470.93,0.00027534,2]
[379177732,1755178262981,-5653.48,0.00027534,2]
[379177733,1755178263008,-3694.2,0.00027534,2]
[379177734,1755178263028,-12828.38,0.00027534,2]
[379177735,1755178263041,-400.0,0.00027534,2]
[379177736,1755178263053,-2876.51,0.00027534,2]
[379177737,1755178263065,-400.0,0.00027534,2]
[379177738,1755178263078,-901.26,0.00027534,2]
[379177739,1755178263090,-2054.73,0.00027534,2]
[379177740,1755178263101,-8613.44,0.00027534,2]
[379177741,1755178263112,-9150.1,0.00027534,2]
[379177742,1755178263123,-673.99,0.00027534,2]
[379177743,1755178263134,-5566.06,0.00027534,2]
[379177744,1755178263144,-6177.7,0.00027534,2]
[379177745,1755178263155,-5070.98,0.00027534,2]
[379177746,1755178263165,-4468.09,0.00027534,2]
[379177747,1755178263176,-2767.41,0.00027534,2]
[379177748,1755178263187,-1438.76,0.00027534,2]
[379177749,1755178263198,-6253.51,0.00027534,2]
[379177750,1755178263209,-5454.14,0.00027534,2]
[379177751,1755178263221,-400.0,0.00027534,2]
[379177752,1755178263232,-1830.64,0.00027534,2]
[379177753,1755178263248,-1177.84,0.00027534,2]
[379177754,1755178263260,-400.0,0.00027534,2]
[379177755,1755178263270,-168.883518,0.00027534,7]
[379177756,1755178263281,-168.883518,0.00027534,7]
[379177757,1755178263292,-867.45,0.00027534,2]
[379177758,1755178263303,-6893.83,0.00027534,2]
[379177759,1755178263313,-970.93181527,0.00027534,2]
[379177760,1755178263331,-2183.76818473,0.00027534,2]
[379177761,1755178263342,-922.53184527,0.00027534,2]
[379177762,1755178263354,-888.72815473,0.00027534,2]
[379177763,1755178263365,-2065.55184527,0.00027534,2]
[379177764,1755178263387,-1338.43815473,0.00027534,2]
[379177765,1755178263397,-1256.98,0.00027534,2]
[379177766,1755178263408,-168.883518,0.00027534,7]
[379177767,1755178263418,-8378.96,0.00027534,2]
[379177768,1755178263429,-709.57932727,0.00027534,2]
[379177769,1755178263473,-400.0,0.00027397,2]
[379177770,1755178263484,-579.12186387,0.00027534,2]
[379177771,1755178263628,-2660.55880886,0.00027534,2]
[379177772,1755178263639,-400.0,0.00027534,2]
[379177773,1755178263650,-168.883518,0.00027534,7]
[379177774,1755178263662,-1559.56814133,0.00027534,2]
[379177775,1755178265459,-400.0,0.00027397,2]
[379177776,1755178265470,-646.2,0.00027397,2]
[379177777,1755178265480,-1462.08,0.00027397,2]
[379177778,1755178265496,-405.0522032,0.00027522,2]
[379177779,1755178265507,-400.0,0.00027522,2]
[379177780,1755178265517,-803.6277968,0.00027534,2]
[379177781,1755178265529,-1165.87058376,0.00027534,2]
[379177782,1755178265685,-5771.93347811,0.00027534,2]
[379177783,1755178265695,-400.0,0.00027534,2]
[379177784,1755178265705,-433.57,0.00027534,2]
[379177785,1755178265715,-503.43,0.00027534,2]
[379177786,1755178265724,-400.0,0.00027534,2]
[379177787,1755178265734,-400.0,0.00027534,2]
[379177788,1755178265750,-753.13,0.00027534,2]
[379177789,1755178265760,-400.0,0.00027534,2]
[379177790,1755178265770,-400.0,0.00027534,2]
[379177791,1755178265780,-231.15,0.00027534,2]
[379177792,1755178265790,-546.74,0.00027534,2]
[379177793,1755178265800,-400.0,0.00027534,2]
[379177794,1755178265811,-400.0,0.00027534,2]
[379177795,1755178265822,-729.15,0.00027534,2]
[379177796,1755178265834,-400.0,0.00027534,2]
[379177797,1755178265843,-400.0,0.00027534,2]
[379177798,1755178265854,-1462.08,0.00027534,2]
[379177799,1755178265864,-646.2,0.00027534,2]
[379177800,1755178265875,-967.57461107,0.00027546,2]
[379177801,1755178265885,-504.0,0.00027556,8]
[379177802,1755178265895,-800.0128925,0.00027559,2]
[379177803,1755178265905,-190.88464858,0.00027559,2]
[379177804,1755178265915,-1298.3326297,0.00027559,2]
[379177805,1755178265925,-931.84190001,0.00027564,2]
[379177806,1755178265935,-159.4303546,0.00027571,2]
[379177807,1755178265944,-433.47981749,0.00027571,2]
[379177808,1755178265954,-160.0,0.000276,7]
[379177809,1755178265964,-6000.0,0.000276,10]
[379177810,1755178265974,-211.86673127,0.000276,7]
[379177811,1755178265985,-458.13769775,0.000276,10]
[379177812,1755178266000,-281.09,0.00027644,2]
[379177813,1755178266011,-1339.15309942,0.00027646,2]
[379177814,1755178266022,-1093.89,0.00027658,2]
[379177815,1755178266032,-758.59,0.00027658,2]
[379177816,1755178266043,-1189.37,0.00027659,2]
[379177817,1755178266053,-870.39,0.00027659,2]
[379177818,1755178266065,-498.33,0.00027659,2]
[379177819,1755178266075,-400.0,0.00027659,2]
[379177820,1755178266086,-400.0,0.00027659,2]
[379177821,1755178266096,-1121.44,0.00027659,2]
[379177822,1755178266107,-1260.91,0.00027659,2]
[379177823,1755178266118,-400.0,0.00027659,2]
[379177824,1755178266128,-750.71,0.00027659,2]
[379177825,1755178266139,-1903.41,0.00027659,2]
[379177826,1755178266150,-838.66,0.00027659,2]
[379177827,1755178266161,-554.53,0.00027659,2]
[379177828,1755178266171,-887.68,0.00027659,2]
[379177829,1755178266182,-408.53,0.00027659,2]
[379177830,1755178266193,-1952.8,0.00027659,2]
[379177831,1755178266204,-1017.21,0.00027659,2]
[379177832,1755178266215,-2764.46,0.00027659,2]
[379177833,1755178266226,-404.4520551,0.00027659,2]
[379177834,1755178266236,-618.14,0.00027659,2]
[379177835,1755178266254,-421.45,0.00027659,2]
[379177836,1755178266264,-400.0,0.00027659,2]
[379177837,1755178266275,-486.77,0.00027659,2]
[379177838,1755178266285,-616.67,0.00027659,2]
[379177839,1755178266294,-400.0,0.00027659,2]
[379177840,1755178266304,-183.45168001,0.00027659,2]
[379177841,1755178266314,-440.12,0.00027659,2]
[379177842,1755178266323,-400.0,0.00027659,2]
[379177843,1755178266333,-2834.21,0.00027659,2]
[379177844,1755178266343,-250.0,0.00027659,2]
[379177845,1755178266353,-400.0,0.00027659,2]
[379177846,1755178266364,-422.77,0.00027659,2]
[379177847,1755178266375,-400.0,0.00027659,2]
[379177848,1755178266385,-400.0,0.00027659,2]
[379177849,1755178266395,-400.0,0.00027659,2]
[379177850,1755178266405,-400.0,0.00027659,2]
[379177851,1755178266415,-400.0,0.00027659,2]
[379177852,1755178266424,-400.0,0.00027659,2]
[379177853,1755178266434,-400.0,0.00027659,2]
[379177854,1755178266443,-2393.63,0.00027659,2]
[379177855,1755178266454,-400.0,0.00027659,2]
[379177856,1755178266464,-400.0,0.00027659,2]
[379177857,1755178266474,-658.49,0.00027659,2]
[379177858,1755178266485,-825.38,0.00027659,2]
[379177859,1755178266502,-400.0,0.00027659,2]
[379177860,1755178266512,-400.0,0.00027659,2]
[379177861,1755178266523,-400.0,0.00027659,2]
[379177862,1755178266534,-900.67,0.00027659,2]
[379177863,1755178266544,-724.19,0.00027659,2]
[379177864,1755178266554,-400.0,0.00027659,2]
[379177865,1755178266565,-400.0,0.00027659,2]
[379177866,1755178266575,-660.91,0.00027659,2]
[379177867,1755178266585,-400.0,0.00027659,2]
[379177868,1755178266594,-523.61,0.00027659,2]
[379177869,1755178266604,-400.0,0.00027659,2]
[379177870,1755178266614,-400.0,0.00027659,2]
[379177871,1755178266624,-400.0,0.00027659,2]
[379177872,1755178266633,-398.27599727,0.00027659,2]
[379177873,1755178266642,-1976.72,0.00027659,2]
[379177874,1755178266652,-1193.07,0.00027659,2]
[379177875,1755178266661,-400.0,0.00027659,2]
[379177876,1755178266671,-400.0,0.00027659,2]
[379177877,1755178266681,-1361.21,0.00027659,2]
[379177878,1755178266690,-924.13,0.00027659,2]
[379177879,1755178266700,-882.15,0.00027659,2]
[379177880,1755178266710,-400.0,0.00027659,2]
[379177881,1755178266720,-400.0,0.00027659,2]
[379177882,1755178266730,-400.0,0.00027659,2]
[379177883,1755178266740,-771.19,0.00027659,2]
[379177884,1755178266754,-2075.48,0.00027659,2]
[379177885,1755178266764,-996.91,0.00027659,2]
[379177886,1755178266774,-400.0,0.00027659,2]
[379177887,1755178266784,-400.0,0.00027659,2]
[379177888,1755178266794,-450.53,0.00027659,2]
[379177889,1755178266804,-493.6,0.00027659,2]
[379177890,1755178266814,-400.0,0.00027659,2]
[379177891,1755178266823,-1174.43,0.00027659,2]
[379177892,1755178266833,-424.5,0.00027659,2]
[379177893,1755178266842,-1852.32,0.00027659,2]
[379177894,1755178266853,-984.79,0.00027659,2]
[379177895,1755178266862,-400.0,0.00027659,2]
[379177896,1755178266872,-2168.3,0.00027659,2]
[379177897,1755178266882,-2016.99,0.00027659,2]
[379177898,1755178266892,-3083.16,0.00027659,2]
[379177899,1755178266902,-930.13,0.00027659,2]
[379177900,1755178266912,-400.0,0.00027659,2]
[379177901,1755178267061,-887.78,0.00027659,2]
[379177902,1755178267072,-417.94,0.00027659,2]
[379177903,1755178267082,-2068.5,0.00027659,2]
[379177904,1755178267091,-400.0,0.00027659,2]
[379177905,1755178267100,-400.0,0.00027659,2]
[379177906,1755178267110,-400.0,0.00027659,2]
[379177907,1755178267119,-400.0,0.00027659,2]
[379177908,1755178267129,-400.0,0.00027659,2]
[379177909,1755178267139,-483.2,0.00027659,2]
[379177910,1755178267148,-598.71,0.00027659,2]
[379177911,1755178267157,-606.63,0.00027659,2]
[379177912,1755178267167,-1733.51,0.00027659,2]
[379177913,1755178267177,-473.53,0.00027659,2]
[379177914,1755178267186,-400.0,0.00027659,2]
[379177915,1755178267195,-400.0,0.00027659,2]
[379177916,1755178267205,-400.0,0.00027659,2]
[379177917,1755178267215,-1347.19,0.00027659,2]
[379177918,1755178267224,-1085.39,0.00027659,2]
[379177919,1755178267233,-400.0,0.00027659,2]
[379177920,1755178267245,-981.48,0.00027659,2]
[379177921,1755178267256,-400.0,0.00027659,2]
[379177922,1755178267266,-810.83,0.00027659,2]
[379177923,1755178267276,-536.82,0.00027659,2]
[379177924,1755178267287,-487.63,0.00027659,2]
[379177925,1755178267297,-439.13,0.00027659,2]
[379177926,1755178267306,-1308.34,0.00027659,2]
[379177927,1755178267316,-1875.92,0.00027659,2]
[379177928,1755178267325,-2290.9,0.00027659,2]
[379177929,1755178267335,-1163.93,0.00027659,2]
[379177930,1755178267344,-415.19,0.00027659,2]
[379177931,1755178267354,-584.76,0.00027659,2]
[379177932,1755178267363,-3248.52,0.00027659,2]
[379177933,1755178267373,-1013.38,0.00027659,2]
[379177934,1755178267382,-725.98,0.00027659,2]
[379177935,1755178267391,-400.0,0.00027659,2]
[379177936,1755178267401,-400.0,0.00027659,2]
[379177937,1755178267410,-400.0,0.00027659,2]
[379177938,1755178267420,-1005.27,0.00027659,2]
[379177939,1755178267429,-995.66,0.00027659,2]
[379177940,1755178267438,-400.0,0.00027659,2]
[379177941,1755178267448,-1629.82,0.00027659,2]
[379177942,1755178267457,-400.0,0.00027659,2]
[379177943,1755178267467,-400.0,0.00027659,2]
[379177944,1755178267476,-400.0,0.00027659,2]
[379177945,1755178267486,-461.91,0.00027659,2]
[379177946,1755178267499,-400.0,0.00027659,2]
[379177947,1755178267509,-400.0,0.00027659,2]
[379177948,1755178267519,-540.24,0.00027659,2]
[379177949,1755178267528,-1312.29,0.00027659,2]
[379177950,1755178267537,-783.13,0.00027659,2]
[379177951,1755178267547,-400.0,0.00027659,2]
[379177952,1755178267557,-2000.0,0.00027659,30]
[379177953,1755178267567,-617.99,0.00027659,2]
[379177954,1755178267577,-1140.84,0.00027659,2]
[379177955,1755178267587,-400.0,0.00027659,2]
[379177956,1755178267597,-400.0,0.00027659,2]
[379177957,1755178267606,-903.94,0.00027659,2]
[379177958,1755178267615,-2419.01,0.00027659,2]
[379177959,1755178267625,-1561.78,0.00027659,2]
[379177960,1755178267634,-907.82,0.00027659,2]
[379177961,1755178267644,-400.0,0.00027659,2]
[379177962,1755178267653,-400.0,0.00027659,2]
[379177963,1755178267662,-2709.8,0.00027659,2]
[379177964,1755178267672,-1753.96,0.00027659,2]
[379177965,1755178267681,-2177.87,0.00027659,2]
[379177966,1755178267691,-585.74,0.00027659,2]
[379177967,1755178267701,-400.0,0.00027659,2]
[379177968,1755178267711,-1485.6,0.00027659,2]
[379177969,1755178267721,-982.49,0.00027659,2]
[379177970,1755178267732,-400.0,0.00027659,2]
[379177971,1755178267742,-521.61,0.00027659,2]
[379177972,1755178267761,-400.0,0.00027659,2]
[379177973,1755178267771,-1794.5,0.00027659,2]
[379177974,1755178267781,-400.0,0.00027659,2]
[379177975,1755178267790,-400.0,0.00027659,2]
[379177976,1755178267800,-2648.87,0.00027659,2]
[379177977,1755178267809,-639.3,0.00027659,2]
[379177978,1755178267819,-928.74,0.00027659,2]
[379177979,1755178267829,-1387.02,0.00027659,2]
[379177980,1755178267838,-1099.43,0.00027659,2]
[379177981,1755178267848,-1260.1,0.00027659,2]
[379177982,1755178267858,-1265.07,0.00027659,2]
[379177983,1755178267868,-660.32,0.00027659,2]
[379177984,1755178267877,-797.65,0.00027659,2]
[379177985,1755178267887,-1502.11,0.00027659,2]
[379177986,1755178267896,-400.0,0.00027659,2]
[379177987,1755178267905,-428.2,0.00027659,2]
[379177988,1755178267914,-902.35,0.00027659,2]
[379177989,1755178267924,-400.0,0.00027659,2]
[379177990,1755178267933,-400.0,0.00027659,2]
[379177991,1755178267942,-408.66,0.00027659,2]
[379177992,1755178267952,-1387.63,0.00027659,2]
[379177993,1755178267961,-419.65,0.00027659,2]
[379177994,1755178267972,-400.0,0.00027659,2]
[379177995,1755178267982,-718.43,0.00027659,2]
[379177996,1755178267991,-455.08,0.00027659,2]
[379177997,1755178268008,-1516.76,0.00027659,2]
[379177998,1755178268017,-226.11,0.00027659,2]
[379177999,1755178268026,-2873.66,0.00027659,2]
[379178000,1755178268036,-458.16,0.00027659,2]
[379178001,1755178268046,-937.23,0.00027659,2]
[379178002,1755178268056,-3163.12,0.00027659,2]
[379178003,1755178268065,-707.26,0.00027659,2]
[379178004,1755178268075,-1619.72,0.00027659,2]
[379178005,1755178268086,-822.21,0.00027659,2]
[379178006,1755178268095,-400.0,0.00027659,2]
[379178007,1755178268104,-400.0,0.00027659,2]
[379178008,1755178268114,-2679.58,0.00027659,2]
[379178009,1755178268123,-1731.16,0.00027659,2]
[379178010,1755178268132,-1809.07,0.00027659,2]
[379178011,1755178268142,-868.21,0.00027659,2]
[379178012,1755178268151,-400.0,0.00027659,2]
[379178013,1755178268160,-522.04,0.00027659,2]
[379178014,1755178268170,-406.5881368,0.00027659,2]
[379178015,1755178268179,-1330.02,0.00027659,2]
[379178016,1755178268189,-788.2,0.00027659,2]
[379178017,1755178268199,-1245.16,0.00027659,2]
[379178018,1755178268208,-657.87,0.00027659,2]
[379178019,1755178268217,-400.0,0.00027659,2]
[379178020,1755178268227,-400.0,0.00027659,2]
[379178021,1755178268237,-1429.4,0.00027659,2]
[379178022,1755178268250,-1203.62,0.00027659,2]
[379178023,1755178268259,-1493.41,0.00027659,2]
[379178024,1755178268269,-931.38,0.00027659,2]
[379178025,1755178268278,-495.47,0.00027659,2]
[379178026,1755178268288,-532.62,0.00027659,2]
[379178027,1755178268298,-400.0,0.00027659,2]
[379178028,1755178268307,-1020.24,0.00027659,2]
[379178029,1755178268317,-400.0,0.00027659,2]
[379178030,1755178268326,-725.14,0.00027659,2]
[379178031,1755178268335,-400.0,0.00027659,2]
[379178032,1755178268344,-400.0,0.00027659,2]
[379178033,1755178268354,-669.04,0.00027659,2]
[379178034,1755178268364,-546.92,0.00027659,2]
[379178035,1755178268374,-400.0,0.00027659,2]
[379178036,1755178268383,-400.0,0.00027659,2]
[379178037,1755178268393,-2674.92,0.00027659,2]
[379178038,1755178268403,-400.0,0.00027659,2]
[379178039,1755178268413,-1850.92,0.00027659,2]
[379178040,1755178268422,-1665.2,0.00027659,2]
[379178041,1755178268432,-428.06,0.00027659,2]
[379178042,1755178268441,-1129.04,0.00027659,2]
[379178043,1755178268451,-890.90986632,0.00027659,7]
[379178044,1755178269427,-447.83059468,0.00027659,7]
[379178045,1755178269437,-151.0,0.00027659,7]
[379178046,1755178269447,-472.79,0.00027659,2]
[379178047,1755178269457,-1338.740461,0.00027659,7]
[379178048,1755178269467,-400.0,0.00027659,2]
[379178049,1755178269477,-1977.03,0.00027659,2]
[379178050,1755178269487,-796.35,0.00027659,2]
[379178051,1755178269503,-637.73,0.00027659,2]
[379178052,1755178269513,-400.0,0.00027659,2]
[379178053,1755178269524,-958.46,0.00027659,2]
[379178054,1755178269533,-400.0,0.00027659,2]
[379178055,1755178269543,-828.8,0.00027659,2]
[379178056,1755178269553,-505.79,0.00027659,2]
[379178057,1755178269562,-941.41,0.00027659,2]
[379178058,1755178269571,-1303.78,0.00027659,2]
[379178059,1755178269581,-500.0,0.00027659,2]
[379178060,1755178269591,-1423.68,0.00027659,2]
[379178061,1755178269601,-400.0,0.00027659,2]
[379178062,1755178269611,-868.7,0.00027659,2]
[379178063,1755178269622,-400.0,0.00027659,2]
[379178064,1755178269633,-400.0,0.00027659,2]
[379178065,1755178269643,-400.0,0.00027659,2]
[379178066,1755178269652,-1823.09,0.00027659,2]
[379178067,1755178269662,-151.0,0.00027659,7]
[379178068,1755178269672,-279.221199,0.00027659,7]
[379178069,1755178269681,-400.0,0.00027659,2]
[379178070,1755178269691,-1093.89,0.00027659,2]
[379178071,1755178269702,-400.0,0.00027659,2]
[379178072,1755178269713,-279.221199,0.00027659,7]
[379178073,1755178269722,-400.0,0.00027659,2]
[379178074,1755178269732,-587.5,0.00027659,2]
[379178075,1755178269742,-667.37,0.00027659,2]
[379178076,1755178269759,-1387.68,0.00027659,2]
[379178077,1755178269769,-638.35,0.00027659,2]
[379178078,1755178269780,-633.37,0.00027659,2]
[379178079,1755178269790,-953.4,0.00027659,2]
[379178080,1755178269801,-453.1,0.00027659,2]
[379178081,1755178269812,-1057.53,0.00027659,2]
[379178082,1755178269823,-1164.57,0.00027659,2]
[379178083,1755178269833,-400.0,0.00027659,2]
[379178084,1755178269844,-758.59,0.00027659,2]
[379178085,1755178269855,-544.68,0.00027659,2]
[379178086,1755178269866,-400.0,0.00027659,2]
[379178087,1755178269878,-467.36,0.00027659,2]
[379178088,1755178269889,-1162.04,0.00027659,2]
[379178089,1755178269901,-1512.81,0.00027659,2]
[379178090,1755178269913,-440.44,0.00027659,2]
[379178091,1755178269924,-560.44,0.00027659,2]
[379178092,1755178269937,-3579.96,0.00027659,2]
[379178093,1755178269958,-1008.23,0.00027659,2]
[379178094,1755178269981,-493.43,0.00027659,2]
[379178095,1755178270003,-729.98,0.00027659,2]
[379178096,1755178270014,-3762.13,0.00027659,2]
[379178097,1755178270025,-466.14,0.00027659,2]
[379178098,1755178270036,-1460.56,0.00027659,2]
[379178099,1755178270047,-965.45,0.00027659,2]
[379178100,1755178270058,-953.91,0.00027659,2]
[379178101,1755178270069,-8112.95,0.00027659,2]
[379178102,1755178270080,-628.84,0.00027659,2]
[379178103,1755178270090,-400.0,0.00027659,2]
[379178104,1755178270101,-2661.85,0.00027659,2]
[379178105,1755178270111,-576.83,0.00027659,2]
[379178106,1755178270121,-483.71,0.00027659,2]
[379178107,1755178270131,-400.0,0.00027659,2]
[379178108,1755178270142,-801.39,0.00027659,2]
[379178109,1755178270151,-1173.69,0.00027659,2]
[379178110,1755178270162,-590.28,0.00027659,2]
[379178111,1755178270172,-2522.41,0.00027659,2]
[379178112,1755178270182,-1483.43,0.00027659,2]
[379178113,1755178270193,-12022.83,0.00027659,2]
[379178114,1755178270203,-627.73,0.00027659,2]
[379178115,1755178270214,-596.32,0.00027659,2]
[379178116,1755178270224,-1148.63,0.00027659,2]
[379178117,1755178270235,-915.36,0.00027659,2]
[379178118,1755178270246,-4405.05,0.00027659,2]
[379178119,1755178270260,-400.0,0.00027659,2]
[379178120,1755178270270,-400.0,0.00027659,2]
[379178121,1755178270280,-946.34,0.00027659,2]
[379178122,1755178270290,-1060.92,0.00027659,2]
[379178123,1755178270300,-400.0,0.00027659,2]
[379178124,1755178270311,-955.48,0.00027659,2]
[379178125,1755178270321,-887.478695,0.00027659,7]
[379178126,1755178270331,-400.0,0.00027659,2]
[379178127,1755178270341,-432.48,0.00027659,2]
[379178128,1755178270351,-887.478695,0.00027659,7]
[379178129,1755178270361,-1130.19,0.00027659,2]
[379178130,1755178270371,-400.0,0.00027659,2]
[379178131,1755178270382,-3361.4,0.00027659,2]
[379178132,1755178270392,-400.0,0.00027659,2]
[379178133,1755178270403,-400.0,0.00027659,2]
[379178134,1755178270413,-1555.3,0.00027659,2]
[379178135,1755178270423,-793.57,0.00027659,2]
[379178136,1755178270434,-400.0,0.00027659,2]
[379178137,1755178270444,-400.0,0.00027659,2]
[379178138,1755178270454,-2129.84,0.00027659,2]
[379178139,1755178270465,-628.83,0.00027659,2]
[379178140,1755178270475,-151.0,0.00027659,7]
[379178141,1755178270485,-400.0,0.00027659,2]
[379178142,1755178270495,-677.63,0.00027659,2]
[379178143,1755178270510,-151.0,0.00027659,7]
[379178144,1755178270521,-707.55,0.00027659,2]
[379178145,1755178270531,-400.0,0.00027659,2]
[379178146,1755178270542,-406.84,0.00027659,2]
[379178147,1755178270552,-2880.58,0.00027659,2]
[379178148,1755178270563,-400.0,0.00027659,2]
[379178149,1755178270574,-5599.66,0.00027659,2]
[379178150,1755178270584,-419.53,0.00027659,2]
[379178151,1755178270595,-2560.83,0.00027659,2]
[379178152,1755178270606,-469.93,0.00027659,2]
[379178153,1755178270617,-636.93,0.00027659,2]
[379178154,1755178270628,-7267.31,0.00027659,2]
[379178155,1755178270638,-729.77,0.00027659,2]
[379178156,1755178270649,-870.06,0.00027659,2]
[379178157,1755178270659,-7291.16,0.00027659,2]
[379178158,1755178270670,-400.0,0.00027659,2]
[379178159,1755178270680,-400.0,0.00027659,2]
[379178160,1755178270691,-544.3,0.00027659,2]
[379178161,1755178270701,-10987.84,0.00027659,2]
[379178162,1755178270712,-776.56,0.00027659,2]
[379178163,1755178270723,-2459.38,0.00027659,2]
[379178164,1755178270734,-1030.83,0.00027659,2]
[379178165,1755178270744,-430.14,0.00027659,2]
[379178166,1755178270760,-1197.16,0.00027659,2]
[379178167,1755178270771,-400.0,0.00027659,2]
[379178168,1755178270782,-400.0,0.00027659,2]
[379178169,1755178270792,-2554.36,0.00027659,2]
[379178170,1755178270804,-678.96,0.00027659,2]
[379178171,1755178270815,-1680.48,0.00027659,2]
[379178172,1755178270825,-603.8,0.00027659,2]
[379178173,1755178270836,-168.883518,0.00027659,7]
[379178174,1755178270846,-400.0,0.00027659,2]
[379178175,1755178270858,-168.883518,0.00027659,7]
[379178176,1755178270868,-400.0,0.00027659,2]
[379178177,1755178270879,-215.55451797,0.00027659,2]
[379178178,1755178270890,-400.0,0.00027659,2]
[379178179,1755178270900,-400.0,0.00027659,2]
[379178180,1755178270916,-400.0,0.00027659,2]
[379178181,1755178270935,-4237.76,0.00027659,2]
[379178182,1755178270945,-400.0,0.00027659,2]
[379178183,1755178270956,-703.185462,0.0002766,7]
[379178184,1755178271335,-703.185462,0.0002766,7]
[379178185,1755178271346,-151.0,0.0002766,7]
[379178186,1755178271356,-500.0,0.0002766,2]
[379178187,1755178271366,-1736.49,0.0002766,2]
[379178188,1755178271377,-1362.025471,0.0002766,7]
[379178189,1755178271387,-151.0,0.0002766,7]
[379178190,1755178271397,-1362.025471,0.0002766,7]
[379178191,1755178271406,-899.244313,0.0002766,7]
[379178192,1755178271416,-899.244313,0.0002766,7]
[379178193,1755178271426,-243.738426,0.0002766,7]
[379178194,1755178271436,-243.738426,0.0002766,7]
[379178195,1755178271445,-627.88,0.0002766,2]
[379178196,1755178271455,-151.0,0.0002766,7]
[379178197,1755178271465,-811.3,0.0002766,2]
[379178198,1755178271475,-500.0,0.0002766,2]
[379178199,1755178271485,-151.0,0.0002766,7]
[379178200,1755178271495,-6987.31,0.0002766,2]
[379178201,1755178271511,-5322.83,0.0002766,2]
[379178202,1755178271521,-5054.98,0.0002766,2]
[379178203,1755178271530,-3142.86,0.0002766,2]
[379178204,1755178271540,-279.221199,0.0002766,7]
[379178205,1755178271551,-1093.89,0.0002766,2]
[379178206,1755178271562,-1600.1,0.0002766,2]
[379178207,1755178271572,-279.221199,0.0002766,7]
[379178208,1755178271581,-8685.17,0.0002766,2]
[379178209,1755178271591,-500.0,0.0002766,2]
[379178210,1755178271601,-5271.46,0.0002766,2]